bitfinex/quotes_ETHUSD_20250708
["timestamp","ask_amount","ask_price","bid_price","bid_amount"]
[1751941049014,5.3030555,2532.7,2532.6,0.002]
[1751941049249,31.1244235,2532.7,2532.6,0.002]
[1751941049448,31.09534369,2532.7,2532.6,0.002]
[1751941051619,31.09534369,2532.7,2531.7,0.2389595]
[1751941051620,5.31564707,2532.0,2531.7,0.0421595]
[1751941051850,29.24747011,2532.0,2531.7,0.0421595]
[1751941052065,32.95407157,2532.0,2531.7,0.0421595]
[1751941052360,32.95407157,2532.0,2530.7,0.0421595]
[1751941052361,14.5008514,2531.1,2530.7,0.0421595]
[1751941052661,5.99294585,2531.3,2530.7,0.0421595]
[1751941052662,1.3662,2530.8,2530.7,0.0421595]
[1751941052819,21.41959955,2530.8,2530.7,0.0421595]
[1751941053018,22.01450772,2530.8,2530.7,0.0421595]
[1751941053416,28.00745357,2530.8,2530.7,0.0421595]
[1751941053948,22.30136874,2530.8,2530.7,0.0421595]
[1751941054156,23.48450772,2530.8,2530.7,0.0421595]
[1751941054328,15.94150772,2530.8,2530.7,0.0421595]
[1751941054531,10.55,2530.8,2530.7,0.0421595]
[1751941054730,11.35,2530.8,2530.7,0.0421595]
[1751941054985,10.55,2530.8,2530.7,0.0421595]
[1751941055167,16.626,2530.8,2530.7,0.0421595]
[1751941055492,21.35731974,2530.8,2530.7,0.0421595]
[1751941055663,22.87764527,2530.8,2530.7,0.0421595]
[1751941055849,22.87763842,2530.8,2530.7,0.0421595]
[1751941056457,16.80163842,2530.8,2530.7,0.0421595]
[1751941056658,23.98761327,2530.8,2530.7,0.0421595]
[1751941057586,23.98761327,2530.8,2530.7,1e-08]
[1751941057886,24.35285926,2530.8,2530.7,1e-08]
[1751941058086,16.43561327,2530.8,2530.7,1e-08]
[1751941058254,23.98861327,2530.8,2530.7,1e-08]
[1751941060956,23.98861327,2530.8,2530.2,0.0421595]
[1751941060957,0.55,2530.5,2530.2,0.0421595]
[1751941061155,3.95169877,2530.6,2530.2,0.0421595]
[1751941061156,21.26724639,2530.3,2530.2,0.0421595]
[1751941061358,33.43524639,2530.3,2530.2,0.0421595]
[1751941061760,27.80650867,2530.3,2530.2,0.0421595]
[1751941062082,10.91420813,2530.3,2530.2,0.0421595]
[1751941062386,10.91420813,2530.3,2530.0,0.0393983]
[1751941062387,0.1976,2530.2,2530.0,0.0393983]
[1751941062768,0.1976,2530.2,2530.0,0.7983983]
[1751941062963,6.086,2530.1,2530.0,0.9959983]
[1751941063170,6.086,2530.1,2530.0,2.09412267]
[1751941063478,6.086,2530.1,2530.0,1.33512267]
[1751941063661,6.086,2530.1,2530.0,0.2369983]
[1751941063988,6.8336,2530.1,2530.0,0.0393983]
[1751941064788,6.8366,2530.1,2530.0,0.0393983]
[1751941065488,6.089,2530.1,2530.0,0.0393983]
[1751941066276,6.639,2530.1,2530.0,0.0393983]
[1751941066797,6.8366,2530.1,2530.0,0.0393983]
[1751941067287,6.86567981,2530.1,2530.0,0.0393983]
[1751941067488,6.2866,2530.1,2530.0,0.0393983]
[1751941067658,0.02907981,2530.3,2530.1,0.7934]
[1751941067858,6.086,2530.2,2530.1,0.7934]
[1751941068064,6.086,2530.2,2530.1,1.89100596]
[1751941068294,10.8281,2530.9,2530.1,1.89100596]
[1751941068497,0.1968,2530.6,2530.2,0.1976]
[1751941068692,6.088,2530.5,2530.2,0.1976]
[1751941068873,0.22587981,2530.6,2530.3,0.7864]
[1751941069055,6.088,2530.5,2530.4,0.9832]
[1751941070159,6.636,2530.5,2530.4,0.7864]
[1751941070502,6.11507981,2530.5,2530.1,0.984]
[1751941070681,0.55,2530.4,2530.1,0.7864]
[1751941070860,0.7476,2530.4,2530.1,0.7864]
[1751941071062,6.086,2530.3,2530.1,0.7864]
[1751941072305,6.086,2530.3,2530.0,0.0393983]
[1751941072306,0.02907981,2530.2,2530.0,0.0393983]
[1751941072477,6.086,2530.1,2530.0,0.0393983]
[1751941074172,0.7476,2530.4,2530.0,0.0393983]
[1751941074498,6.085,2530.3,2530.1,0.7817]
[1751941078383,0.02907981,2530.2,2530.1,0.7817]
[1751941079075,0.02907981,2530.2,2530.0,0.0393983]
[1751941080707,0.36761031,2530.1,2530.0,0.0393983]
[1751941081213,0.91761031,2530.1,2530.0,0.0393983]
[1751941081605,0.36761031,2530.1,2530.0,6.81804415]
[1751941081790,6.078,2530.4,2530.0,7.05516984]
[1751941082103,6.08,2530.6,2530.2,10.73090258]
[1751941082290,0.36835416,2530.5,2530.3,0.9962]
[1751941082493,0.36835416,2530.4,2530.3,0.9962]
[1751941082892,0.36848114,2530.4,2530.3,0.9962]
[1751941083109,0.1968,2530.8,2530.3,2.09034026]
[1751941083404,1.41527204,2530.9,2530.5,5.99294585]
[1751941083591,0.35757909,2530.8,2530.7,0.1968]
[1751941084185,0.90761362,2530.8,2530.4,0.7519]
[1751941084389,0.02907981,2530.7,2530.4,0.9487]
[1751941085107,0.55,2530.8,2530.4,0.9487]
[1751941085314,0.55,2530.8,2530.4,2.04202636]
[1751941086102,6.2758,2530.9,2530.4,6.03344986]
[1751941086402,6.077,2530.8,2530.4,2.0815458]
[1751941086605,0.1968,2530.9,2530.5,5.99294585]
[1751941086787,6.076,2530.8,2530.6,0.7745]
[1751941087306,6.075,2530.9,2530.7,0.1968]
[1751941088209,0.1968,2531.2,2530.7,5.50186959]
[1751941088382,6.074,2531.1,2530.8,0.7703]
[1751941088584,6.074,2531.1,2530.9,0.1968]
[1751941089107,1.41401292,2531.0,2530.9,0.1968]
[1751941089506,0.77587981,2531.4,2530.9,4.14796361]
[1751941089678,6.073,2531.2,2530.9,0.1968]
[1751941090078,0.1968,2531.4,2530.9,4.18746798]
[1751941090407,6.072,2531.3,2530.9,0.23631163]
[1751941090711,6.10107981,2531.3,2530.9,0.1968]
[1751941091217,6.072,2531.3,2530.9,4.14794258]
[1751941091412,6.072,2531.3,2531.0,0.7848]
[1751941091913,0.7468,2531.4,2531.0,0.7848]
[1751941092110,6.07,2531.3,2531.0,0.7848]
[1751941092410,2.20598052,2531.7,2531.2,0.1968]
[1751941092411,0.1968,2531.7,2531.2,0.1968]
[1751941092621,6.09807981,2531.6,2531.3,0.1968]
[1751941092827,0.02907981,2531.6,2531.3,0.1968]
[1751941093025,0.8,2531.5,2531.3,0.1968]
[1751941093525,0.02907981,2531.4,2531.2,0.1968]
[1751941093915,0.8,2531.5,2531.2,0.1968]
[1751941093916,0.82907981,2531.5,2531.2,0.1968]
[1751941094117,6.069,2531.6,2531.1,0.7848]
[1751941094431,6.069,2531.6,2531.3,0.1968]
[1751941095826,0.57907981,2531.5,2531.1,0.7848]
[1751941096014,0.57907981,2531.5,2531.2,0.1968]
[1751941096229,0.57907981,2531.5,2531.1,0.7848]
[1751941096416,0.77587981,2531.5,2531.1,0.7848]
[1751941097901,14.99783951,2531.9,2531.2,0.03950695]
[1751941097902,0.7582,2531.9,2531.2,0.03950695]
[1751941098102,0.1978,2531.9,2531.4,0.1968]
[1751941098418,0.001,2531.9,2531.7,0.1968]
[1751941099535,0.001,2531.9,2531.5,0.7617]
[1751941099722,0.551,2531.9,2531.6,0.1968]
[1751941100029,5.26011382,2531.9,2531.6,0.1968]
[1751941100410,1.31050798,2531.9,2531.6,0.1968]
[1751941100729,0.02907981,2531.8,2531.6,0.1968]
[1751941108445,0.55,2531.7,2531.3,0.7786]
[1751941108646,0.55,2531.7,2531.4,0.1968]
[1751941108852,6.617,2531.7,2531.4,0.1968]
[1751941111651,0.55,2531.7,2531.4,0.1968]
[1751941111854,6.613,2531.7,2531.4,0.1968]
[1751941112057,0.55,2531.5,2531.3,0.7786]
[1751941113048,6.063,2531.7,2531.3,0.7786]
[1751941113253,6.063,2531.7,2531.4,0.1968]
[1751941114456,0.551,2531.8,2531.4,0.1968]
[1751941114650,6.611,2531.8,2531.4,0.1968]
[1751941114860,6.611,2531.8,2531.4,0.23630383]
[1751941115053,6.611,2531.8,2531.4,0.1968]
[1751941116433,6.61,2531.8,2531.4,0.1968]
[1751941117549,0.551,2531.8,2531.4,0.1968]
[1751941117865,6.609,2531.8,2531.4,0.1968]
[1751941118656,0.551,2531.8,2531.4,0.23630383]
[1751941118862,0.001,2531.8,2531.5,6.76259067]
[1751941119159,0.001,2531.8,2531.7,6.19569067]
[1751941119329,0.001,2531.8,2531.7,0.1968]
[1751941120936,0.001,2531.8,2531.7,0.9605]
[1751941121137,0.001,2531.8,2531.7,8.05429302]
[1751941121945,0.001,2531.8,2531.7,12.00420809]
[1751941122148,0.001,2531.8,2531.7,22.00420809]
[1751941126436,0.0350083,2532.1,2531.9,3.94957428]
[1751941126676,0.0350083,2532.1,2532.0,33.18775321]
[1751941126852,0.0350083,2532.1,2532.0,45.80902722]
[1751941127375,0.0422374,2532.6,2532.5,4.72986732]
[1751941127667,0.0422374,2532.6,2532.5,26.97755799]
[1751941128864,0.0422374,2532.6,2532.5,30.3248709]
[1751941129045,0.0422374,2532.6,2532.5,33.75223755]
[1751941130851,0.001,2532.9,2532.5,33.75223755]
[1751941130852,0.001,2532.9,2532.8,4.75829962]
[1751941131057,0.001,2532.9,2532.8,20.1585032]
[1751941131249,0.001,2532.9,2532.8,20.3553032]
[1751941131588,0.001,2532.9,2532.8,34.1805177]
[1751941132577,0.001,2532.9,2532.8,63.6394197]
[1751941132742,0.0432374,2533.6,2533.5,14.74140874]
[1751941132941,0.0432374,2533.6,2533.5,30.33741232]
[1751941133553,0.0432374,2533.6,2533.5,31.83141232]
[1751941135139,0.0432374,2533.6,2533.5,24.28441232]
[1751941135339,0.0432374,2533.6,2533.5,20.99820874]
[1751941135542,0.0432374,2533.6,2533.5,23.64125574]
[1751941135857,0.0432374,2533.6,2533.5,32.98745932]
[1751941138585,0.001,2533.7,2533.6,13.94695295]
[1751941138744,0.001,2534.0,2533.9,3.94648565]
[1751941139092,1.486,2534.9,2534.2,22.63565546]
[1751941139093,0.551,2534.9,2534.2,22.63565546]
[1751941139252,0.551,2534.9,2534.2,30.36882204]
[1751941139451,0.551,2534.9,2534.2,35.61702204]
[1751941139651,0.551,2534.9,2534.6,4.71799572]
[1751941139962,0.064832,2535.8,2535.1,21.13248]
[1751941140286,0.064832,2535.8,2534.9,10.0]
[1751941140287,0.064832,2535.8,2535.7,10.1968]
[1751941140759,0.064832,2535.8,2535.7,16.2668]
[1751941140961,0.064832,2535.8,2535.7,10.1968]
[1751941141172,0.064832,2535.8,2535.4,6.069]
[1751941141361,0.55,2535.6,2535.5,0.1968]
[1751941141690,0.064832,2535.8,2535.6,14.71009958]
[1751941141902,0.064832,2535.8,2535.6,19.02369311]
[1751941142071,0.064832,2535.8,2535.7,0.23623684]
[1751941142389,0.064832,2535.8,2535.7,16.30523684]
[1751941142550,0.064832,2535.8,2535.7,10.1968]
[1751941142891,0.064832,2535.8,2535.7,16.2658]
[1751941143348,0.064832,2535.8,2535.7,20.20948418]
[1751941143549,0.064832,2535.8,2535.7,21.64780164]
[1751941143753,0.064832,2535.8,2535.7,22.41420164]
[1751941144193,0.064832,2536.5,2536.2,0.7664]
[1751941144368,0.064832,2536.5,2536.4,0.1968]
[1751941144549,0.7808,2536.4,2536.3,0.1968]
[1751941144971,0.064832,2536.5,2536.4,3.9425958]
[1751941145187,0.064832,2536.5,2536.4,16.2668]
[1751941145350,0.064832,2536.5,2536.2,10.0]
[1751941145554,0.064832,2536.5,2536.3,0.1968]
[1751941145784,0.614832,2536.5,2536.3,0.1968]
[1751941146079,0.614832,2536.5,2536.2,0.1968]
[1751941146080,1.34337981,2536.4,2536.2,0.1968]
[1751941146498,0.55,2536.2,2535.9,0.1968]
[1751941146649,0.57907981,2536.2,2535.9,0.1968]
[1751941147370,0.55,2536.2,2535.9,0.1968]
[1751941147683,0.064832,2536.5,2536.1,0.1968]
[1751941147860,0.064832,2536.5,2536.3,0.1968]
[1751941149719,0.064832,2536.5,2536.4,29.39822533]
[1751941149856,0.064832,2536.5,2536.4,29.35879938]
[1751941150197,0.064832,2536.5,2536.4,30.17739938]
[1751941151185,0.064832,2536.5,2536.4,24.10739938]
[1751941151384,0.064832,2536.5,2536.4,30.18139938]
[1751941151584,0.064832,2536.5,2536.4,33.9244712]
[1751941151966,0.064832,2536.5,2536.4,20.63467182]
[1751941152166,0.064832,2536.5,2536.4,24.57726762]
[1751941152372,0.064832,2536.5,2536.4,20.63467182]
[1751941152582,0.064832,2536.5,2536.4,18.50426762]
[1751941152783,0.064832,2536.5,2536.4,20.63367182]
[1751941153200,0.064832,2536.5,2536.4,18.50426762]
[1751941153378,0.064832,2536.5,2536.4,24.57626762]
[1751941154211,0.065832,2536.5,2536.4,27.8504712]
[1751941154393,0.065832,2536.5,2536.4,33.9194712]
[1751941156466,0.065832,2536.5,2536.4,16.8856]
[1751941156695,0.065832,2536.5,2536.4,20.8281958]
[1751941157804,0.065832,2536.5,2536.4,10.0]
[1751941157971,0.065832,2536.5,2536.4,16.069]
[1751941158604,0.065832,2536.5,2536.4,16.068]
[1751941158999,0.065832,2536.5,2536.4,20.0105958]
[1751941159592,0.065832,2536.5,2536.4,22.50519828]
[1751941159906,0.065832,2536.5,2536.4,18.56260248]
[1751941160104,0.065832,2536.5,2536.4,16.074]
[1751941160686,0.065832,2536.5,2536.4,10.0]
[1751941161509,0.065832,2536.5,2536.3,6.2698]
[1751941161674,0.065832,2536.5,2536.3,0.1968]
[1751941162006,0.065832,2536.5,2536.3,6.2718]
[1751941162419,0.55,2536.4,2536.3,0.1968]
[1751941162575,0.7604,2536.3,2536.1,6.074]
[1751941162775,0.7604,2536.3,2536.1,0.1968]
[1751941163008,0.57907981,2536.2,2535.2,0.7586]
[1751941163189,0.55,2536.2,2535.9,0.1968]
[1751941163382,0.57907981,2536.2,2535.9,0.1968]
[1751941164016,0.55,2536.2,2535.9,0.1968]
[1751941164599,0.55,2536.0,2535.9,0.1968]
[1751941164914,0.55,2536.0,2535.4,6.076]
[1751941165113,0.55,2535.8,2535.6,0.1968]
[1751941165415,0.57907981,2535.7,2535.0,0.002]
[1751941165623,0.02907981,2535.7,2535.4,0.1968]
[1751941165779,0.33122779,2535.7,2535.4,0.1968]
[1751941165984,0.02907981,2535.7,2535.4,0.1968]
[1751941166330,9.34620358,2535.5,2535.0,0.002]
[1751941166532,1.3688,2535.1,2535.0,0.002]
[1751941167025,5.34249737,2535.1,2535.0,0.002]
[1751941167182,5.87674711,2535.1,2535.0,0.002]
[1751941167607,15.87674711,2535.1,2535.0,0.002]
[1751941167804,15.8476673,2535.1,2535.0,0.002]
[1751941169229,11.90304974,2535.1,2535.0,0.002]
[1751941169432,1.3688,2535.1,2535.0,0.002]
[1751941169632,1.39787981,2535.1,2535.0,0.002]
[1751941171538,1.3688,2535.1,2535.0,0.002]
[1751941171739,5.31341756,2535.1,2535.0,0.002]
[1751941172238,5.34249737,2535.1,2535.0,0.002]
[1751941172551,6.27118288,2535.1,2535.0,0.002]
[1751941172748,5.34249737,2535.1,2535.0,0.002]
[1751941173059,15.34249737,2535.1,2535.0,0.002]
[1751941173215,15.31341756,2535.1,2535.0,0.002]
[1751941174038,15.63653814,2535.1,2535.0,0.002]
[1751941174244,25.73924324,2535.1,2535.0,0.002]
[1751941176940,25.73424324,2535.1,2535.0,0.002]
[1751941177142,11.78962568,2535.1,2535.0,0.002]
[1751941177347,7.0198,2535.1,2535.0,0.002]
[1751941177653,7.59887981,2535.1,2535.0,0.002]
[1751941178440,1.3688,2535.1,2535.0,0.002]
[1751941178641,7.5668,2535.1,2535.0,0.002]
[1751941178841,1.3688,2535.1,2535.0,0.002]
[1751941179068,0.02907981,2535.3,2535.0,0.1988]
[1751941179769,0.55,2535.2,2535.0,0.1988]
[1751941179923,0.02907981,2535.1,2535.0,0.002]
[1751941182359,0.55,2535.2,2535.0,0.002]
[1751941182662,0.55,2535.3,2535.0,0.1988]
[1751941183436,0.57907981,2535.3,2535.0,0.1988]
[1751941186090,3.94446197,2535.2,2535.0,0.1988]
[1751941186241,0.02907981,2535.1,2535.0,0.002]
[1751941186434,0.22587981,2535.1,2535.0,0.002]
[1751941186836,0.1968,2535.1,2535.0,0.002]
[1751941187870,1.76608893,2535.3,2535.0,0.002]
[1751941187871,0.55,2535.2,2535.0,0.002]
[1751941188083,0.1968,2535.3,2535.0,0.002]
[1751941188251,0.02907981,2535.3,2535.0,0.1988]
[1751941188575,0.57907981,2535.3,2535.0,0.1988]
[1751941195129,0.55,2535.3,2535.1,0.771]
[1751941195340,0.57907981,2535.3,2535.1,0.771]
[1751941196771,0.57907981,2535.3,2534.8,0.03945084]
[1751941196772,4.49461756,2535.1,2534.8,0.03945084]
[1751941196972,0.55,2534.5,2533.9,0.002]
[1751941197152,0.55,2534.3,2533.9,0.002]
[1751941197774,0.02907981,2534.2,2533.9,0.002]
[1751941197974,1.09827604,2534.2,2533.9,0.002]
[1751941198364,5.0443098,2534.2,2533.9,0.002]
[1751941198756,1.09827604,2534.2,2533.9,0.002]
[1751941200282,5.04430043,2534.2,2533.9,0.002]
[1751941200491,0.55,2534.0,2533.9,0.002]
[1751941200664,0.57907981,2534.0,2533.9,0.002]
[1751941202459,0.57907981,2534.2,2533.9,0.002]
[1751941205915,3.94528785,2534.7,2533.9,0.002]
[1751941205916,11.54,2534.8,2534.0,0.7747]
[1751941206116,6.153,2534.6,2534.0,0.7747]
[1751941206317,0.55,2534.4,2534.0,0.7747]
[1751941206527,0.02907981,2534.3,2534.0,0.7747]
[1751941206902,0.02907981,2534.3,2534.1,0.1968]
[1751941207625,0.55,2534.5,2534.1,0.1968]
[1751941207938,6.149,2534.8,2534.1,4.67826673]
[1751941208087,0.55,2534.7,2534.1,0.53538906]
[1751941208289,0.55,2534.7,2534.3,0.1968]
[1751941209625,0.55,2534.7,2534.4,0.8139]
[1751941212524,0.1968,2534.8,2534.4,0.8139]
[1751941212823,6.17207981,2535.0,2534.6,0.1968]
[1751941212998,0.55,2534.9,2534.6,0.1968]
[1751941213187,0.02907981,2534.8,2534.6,0.1968]
[1751941213590,0.57907981,2535.0,2534.6,0.1968]
[1751941214396,0.55,2535.0,2534.6,4.63774714]
[1751941214605,0.02907981,2535.3,2534.7,0.8314]
[1751941214828,0.02907981,2535.3,2534.9,0.1968]
[1751941215025,0.55,2535.2,2534.9,0.1968]
[1751941215328,0.02907981,2535.1,2534.9,0.1968]
[1751941216400,0.02907981,2535.1,2534.6,0.49562337]
[1751941216401,0.48796268,2535.0,2534.5,0.8314]
[1751941216638,9.33445555,2535.6,2534.5,0.8314]
[1751941216639,5.85412875,2537.1,2535.4,0.61732129]
[1751941216837,0.20632047,2537.7,2535.4,0.61732129]
[1751941216838,6.06044922,2537.7,2537.0,13.94166338]
[1751941217025,4.70275653,2538.5,2537.8,30.0]
[1751941217229,0.0608076,2539.3,2538.5,13.93933425]
[1751941217555,0.0608076,2539.3,2538.5,15.34753468]
[1751941217556,0.3280535,2539.2,2538.5,15.34753468]
[1751941217735,0.1833428,2539.1,2538.6,10.0]
[1751941217904,3.98385744,2539.5,2538.9,1.76608426]
[1751941218219,3.93840337,2539.1,2539.0,1.40820043]
[1751941218396,16.91645319,2539.1,2539.0,1.40307106]
[1751941218602,16.91640337,2539.1,2539.0,1.40307106]
[1751941218958,1.42047906,2539.0,2538.9,1.76608426]
[1751941219097,0.55,2538.9,2538.8,1.76608426]
[1751941219305,0.55,2538.9,2538.5,1.76608426]
[1751941219540,0.55,2538.7,2538.5,1.76608426]
[1751941219831,0.55,2538.5,2537.9,1.76608426]
[1751941219998,2.9222,2538.4,2538.1,1.76608426]
[1751941220218,0.55,2538.3,2538.1,1.76608426]
[1751941220422,1.662,2538.2,2538.0,1.76608426]
[1751941220623,12.993,2538.1,2538.0,1.76608426]
[1751941220823,12.77108207,2538.1,2538.0,2.49436384]
[1751941221023,11.82425555,2538.1,2538.0,2.49436384]
[1751941221422,11.82425555,2538.1,2538.0,0.72827958]
[1751941221616,11.82425555,2538.1,2538.0,2.49436384]
[1751941221824,8.49042057,2538.1,2538.0,4.66769604]
[1751941222016,8.49042057,2538.1,2538.0,6.4337803]
[1751941222260,8.49042057,2538.1,2538.0,4.66769604]
[1751941222761,0.78835705,2538.4,2538.3,3.93964464]
[1751941223056,0.78835705,2538.4,2538.3,4.66723036]
[1751941223629,0.78835705,2538.4,2538.3,14.66723036]
[1751941223974,0.78835705,2538.4,2538.3,17.33433333]
[1751941224456,0.78835705,2538.4,2538.3,17.33275591]
[1751941224959,0.49254666,2538.4,2538.3,17.33275591]
[1751941225327,6.48,2539.1,2538.8,3.93871538]
[1751941225631,6.48,2539.1,2538.4,3.93948944]
[1751941225632,6.48,2539.1,2538.9,0.7260083]
[1751941225826,7.03,2539.1,2539.0,0.7260083]
[1751941226027,7.8442,2539.1,2539.0,0.7260083]
[1751941226943,0.72330501,2539.1,2539.0,0.7260083]
[1751941227145,1.662,2539.3,2539.0,0.7260083]
[1751941227334,1.662,2539.3,2539.1,0.7260083]
[1751941227652,1.662,2539.3,2539.2,0.7260083]
[1751941228072,0.7975,2539.6,2539.2,0.7260083]
[1751941228272,6.46,2539.4,2539.3,0.7260083]
[1751941228569,7.19034305,2539.4,2539.3,0.7260083]
[1751941228772,7.74034305,2539.4,2539.3,0.7260083]
[1751941229183,6.458,2539.5,2539.3,5.42548569]
[1751941229350,6.458,2539.5,2539.0,5.87434674]
[1751941229351,0.1968,2539.3,2539.0,5.87434674]
[1751941229554,0.1968,2539.2,2539.1,6.59540436]
[1751941230355,6.45,2539.5,2539.1,0.72105762]
[1751941230554,0.1968,2539.3,2539.2,6.48997622]
[1751941230957,0.1968,2539.3,2539.2,8.09076334]
[1751941231571,0.1968,2539.3,2539.2,2.32154928]
[1751941232062,0.60594102,2539.3,2539.2,2.32154928]
[1751941232670,0.1968,2539.3,2539.2,10.54563472]
[1751941233366,0.55,2539.6,2539.2,10.54563472]
[1751941233566,0.55,2539.6,2539.3,10.54563472]
[1751941233769,0.55,2539.6,2539.4,2.32154928]
[1751941233955,0.55,2539.6,2539.5,2.32154928]
[1751941234156,1.661,2539.7,2539.5,2.32158378]
[1751941234386,8.095,2539.7,2539.6,2.32158378]
[1751941234783,8.095,2539.7,2539.6,10.54566922]
[1751941235552,0.99610278,2539.7,2539.6,2.32158378]
[1751941236168,1.54610278,2539.7,2539.6,2.32158378]
[1751941236377,1.94992306,2539.7,2539.6,2.32158378]
[1751941236892,1.05271282,2539.7,2539.6,2.32158378]
[1751941237488,0.40382028,2539.7,2539.6,2.32158378]
[1751941238056,0.40382028,2539.7,2539.6,2.32207897]
[1751941238454,5.9246633,2539.8,2539.6,2.32207897]
[1751941238659,5.9246633,2539.8,2539.7,2.32207897]
[1751941239389,6.4746633,2539.8,2539.7,2.32207897]
[1751941239691,6.4746633,2539.8,2539.7,0.93755112]
[1751941240295,5.96197979,2539.8,2539.7,0.93755112]
[1751941240807,19.89929768,2539.8,2539.7,4.86741283]
[1751941240956,19.89929768,2539.8,2539.1,4.63563127]
[1751941240957,3.93762797,2539.6,2539.1,4.63563127]
[1751941241160,0.55,2539.3,2539.0,4.63563127]
[1751941241388,0.1968,2539.0,2538.8,4.63563127]
[1751941241580,4.71832954,2539.2,2538.9,4.63563127]
[1751941241788,4.33374932,2539.2,2538.6,10.43017036]
[1751941241965,7.1779,2539.4,2538.6,4.63563127]
[1751941242160,0.1968,2539.0,2538.6,4.83243127]
[1751941242359,0.1968,2539.0,2538.8,4.63563127]
[1751941243001,0.1968,2539.1,2538.7,5.79453909]
[1751941243165,0.1968,2539.1,2539.0,4.65237425]
[1751941243364,0.1968,2539.1,2538.7,5.79453909]
[1751941243564,0.1968,2539.1,2538.9,5.79453909]
[1751941243884,0.1968,2539.1,2539.0,4.66162623]
[1751941244266,7.1779,2539.4,2539.0,4.66162623]
[1751941244469,11.11583809,2539.4,2539.3,4.66162623]
[1751941244664,3.93809317,2539.3,2539.2,4.66162623]
[1751941244861,11.11592175,2539.4,2539.2,4.66162623]
[1751941245067,3.93809317,2539.3,2539.2,4.66162623]
[1751941245374,7.1779,2539.4,2538.8,5.79453909]
[1751941245575,3.93819086,2539.3,2539.1,5.85818257]
[1751941245780,0.1968,2539.1,2538.8,5.85818257]
[1751941245981,0.1968,2538.9,2538.8,5.85818257]
[1751941246300,0.1968,2539.0,2538.8,5.85818257]
[1751941246471,0.1968,2539.0,2538.9,8.11235472]
[1751941246873,0.1968,2539.0,2538.6,8.11235472]
[1751941247606,0.1968,2539.3,2538.9,5.8936541]
[1751941247801,6.382,2539.5,2539.1,5.8936541]
[1751941247970,0.50893427,2539.4,2539.2,5.8936541]
[1751941248170,0.1968,2539.4,2539.2,5.8936541]
[1751941248406,0.1968,2539.4,2539.3,5.8936541]
[1751941248701,0.1968,2539.4,2539.1,5.8936541]
[1751941249205,6.5788,2539.5,2539.0,6.0904541]
[1751941249405,10.51658302,2539.5,2539.4,4.71516411]
[1751941249700,10.51658302,2539.5,2539.0,5.8936541]
[1751941249701,3.93794074,2539.4,2539.0,5.8936541]
[1751941249865,3.93794074,2539.4,2539.3,4.71542622]
[1751941250074,4.24409017,2539.4,2539.3,4.71542622]
[1751941250572,0.30614943,2539.4,2539.3,4.71542622]
[1751941250766,10.31986609,2539.5,2539.3,4.71542622]
[1751941250965,0.36846046,2539.4,2539.3,3.29546843]
[1751941251508,10.31986609,2539.5,2539.3,3.29546843]
[1751941251868,0.1968,2539.3,2538.9,5.8936541]
[1751941252115,0.1968,2539.1,2538.9,4.61175534]
[1751941252266,0.36848959,2539.0,2538.9,4.09899583]
[1751941252469,0.36848959,2539.0,2538.9,0.1968]
[1751941253069,0.36848959,2539.0,2538.9,1.61235116]
[1751941253270,0.36848959,2539.0,2538.9,2.43715116]
[1751941254678,0.36848959,2539.0,2538.9,6.37586477]
[1751941254880,0.36848959,2539.0,2538.9,2.43715116]
[1751941255084,0.1968,2539.5,2538.9,6.37586477]
[1751941255287,0.1968,2539.5,2539.0,7.97035116]
[1751941255490,0.1968,2539.5,2539.1,1.41555116]
[1751941255689,0.1968,2539.5,2539.2,1.41555116]
[1751941256002,0.001,2539.8,2539.3,7.77255116]
[1751941256203,0.1978,2539.8,2539.4,1.61235116]
[1751941256375,0.1978,2539.8,2539.5,1.41555116]
[1751941256574,0.1978,2539.8,2539.6,1.41555116]
[1751941256776,0.1978,2539.8,2539.7,1.41555116]
[1751941258177,0.1978,2539.8,2539.7,0.90287802]
[1751941258779,4.13511789,2539.8,2539.7,0.90287802]
[1751941259211,1.61393911,2539.8,2539.2,0.1968]
[1751941259415,0.1968,2539.5,2539.0,10.1968]
[1751941259600,0.1968,2539.5,2539.0,0.1968]
[1751941260080,1.61274137,2539.5,2539.0,0.1968]
[1751941260430,5.55058728,2539.5,2539.0,0.1968]
[1751941260586,4.13464591,2539.5,2539.0,0.1968]
[1751941260989,0.1968,2539.5,2539.0,0.1968]
[1751941261536,4.13460454,2539.5,2539.0,0.1968]
[1751941261716,0.1968,2539.5,2539.0,0.1968]
[1751941263129,1.61273384,2539.7,2539.3,0.1968]
[1751941263326,0.1968,2539.7,2539.3,0.1968]
[1751941263841,0.36874288,2539.6,2539.1,0.7884]
[1751941264139,0.36874288,2539.5,2539.3,3.93801589]
[1751941264286,0.001,2539.8,2539.4,4.57093809]
[1751941264483,0.36867784,2539.7,2539.5,3.93767438]
[1751941264695,0.36867784,2539.6,2539.5,4.72607438]
[1751941264922,0.36867784,2539.6,2539.5,0.7884]
[1751941265931,0.36867784,2539.6,2539.5,5.88800302]
[1751941266136,0.001,2539.8,2539.5,5.88800302]
[1751941266429,0.36835491,2539.7,2539.6,10.0]
[1751941266587,0.36835491,2539.7,2539.6,13.93762797]
[1751941266787,0.36835491,2539.7,2539.6,14.13442797]
[1751941266989,0.36835491,2539.7,2539.6,16.19998622]
[1751941267843,0.36835491,2539.7,2539.6,12.26235825]
[1751941267986,0.736505,2539.7,2539.6,0.1968]
[1751941268615,0.736505,2539.7,2539.0,0.7569]
[1751941268819,0.736505,2539.6,2539.5,0.1968]
[1751941271132,0.36835491,2539.6,2539.5,0.1968]
[1751941271430,0.36835491,2539.6,2539.5,1.0086]
[1751941271594,0.001,2539.8,2539.5,1.0086]
[1751941271795,0.36798645,2539.7,2539.5,1.0086]
[1751941272012,0.001,2539.8,2539.5,1.0086]
[1751941272212,0.73595665,2539.7,2539.5,1.0086]
[1751941272416,0.001,2539.8,2539.5,1.0086]
[1751941272623,0.36799549,2539.7,2539.5,1.0086]